bitfinex/quotes_ETHUSD_20251010
["timestamp","ask_amount","ask_price","bid_price","bid_amount"]
[1760124655176,0.0511,3999.2,3996.0,0.6336]
[1760124655377,30.0,3999.6,3996.2,0.6336]
[1760124655604,0.001,3999.7,3996.5,2.616]
[1760124655805,0.001,3999.7,3996.3,14.9513]
[1760124655806,0.001,3999.7,3997.3,2.616]
[1760124655995,0.001,3999.7,3997.6,2.5015009]
[1760124656189,0.001,3999.7,3997.9,2.50131318]
[1760124656390,0.001,3999.7,3998.1,0.6336]
[1760124656625,0.001,3999.7,3998.3,0.6336]
[1760124656824,0.001,3999.7,3998.4,4.08101]
[1760124657130,0.001,3999.7,3998.7,0.6336]
[1760124657279,0.001,3999.7,3998.5,14.5]
[1760124657481,30.0,3999.6,3997.1,4.053]
[1760124657736,0.001,3999.7,3997.2,0.02501751]
[1760124657737,1.92,3998.8,3997.2,0.02501751]
[1760124657884,1.92,3998.6,3996.2,4.5053]
[1760124658084,30.0,3998.3,3996.2,4.054]
[1760124658429,1.92,3998.9,3996.3,0.4513]
[1760124658753,1.25,3998.8,3996.4,14.793]
[1760124658957,2.1533,3999.5,3996.4,14.793]
[1760124658958,0.0663,3999.5,3996.6,0.6336]
[1760124659168,0.068,4000.3,3996.8,0.6336]
[1760124659458,2.50099067,4000.1,3996.8,0.6336]
[1760124659617,2.50099067,4000.1,3997.0,0.6336]
[1760124659618,11.00979542,4000.0,3997.0,0.6336]
[1760124659815,11.00979542,4000.0,3996.9,0.47631939]
[1760124659816,1.00979542,4000.0,3998.1,2.50115855]
[1760124660015,1.00979542,4000.0,3998.3,0.6336]
[1760124660229,1.00979542,4000.0,3999.0,0.6336]
[1760124660450,1.00979542,4000.0,3999.2,0.6336]
[1760124660653,1.00979542,4000.0,3999.3,0.02500437]
[1760124660854,1.00979542,4000.0,3999.4,0.65860375]
[1760124661026,0.001,4000.5,4000.4,3.13335002]
[1760124661228,0.001,4001.6,4001.1,0.6336]
[1760124661433,0.001,4001.6,4001.3,0.6336]
[1760124661631,6.52,4005.5,4001.0,2.086]
[1760124661632,2.086,4005.0,4001.5,0.6336]
[1760124661817,0.4748,4004.1,4001.5,0.6336]
[1760124662022,0.6191,4003.8,4001.5,4.053]
[1760124662222,0.4748,4003.2,4001.6,0.6336]
[1760124662518,0.4748,4003.2,4001.5,4.053]
[1760124662718,2.49812459,4003.1,4001.5,4.053]
[1760124662960,2.49812459,4003.1,4000.9,6.52]
[1760124662961,11.92,4003.0,4000.9,6.52]
[1760124663258,0.4748,4002.4,4000.7,4.052]
[1760124663461,30.0,4002.0,3999.7,6.52]
[1760124663670,21.714,4001.8,3999.2,3.53]
[1760124663867,4.41908399,4001.5,3998.3,6.7333]
[1760124664073,4.41908399,4001.5,3998.2,2.086]
[1760124664074,2.49950097,4000.8,3998.2,2.086]
[1760124664376,1.92,4001.5,3997.3,6.6381]
[1760124664377,30.0,4000.4,3997.3,6.6381]
[1760124664527,30.0,4000.2,3997.4,15.858]
[1760124664731,1.92,3999.9,3997.4,15.858]
[1760124664932,1.92,3999.8,3997.4,1.358]
[1760124665127,1.249,4000.1,3997.5,0.1201]
[1760124665328,0.4748,4001.1,3997.6,14.525015]
[1760124665556,0.4748,4002.0,3997.7,0.1201]
[1760124665759,1.92,4001.7,3997.7,0.1201]
[1760124665955,30.0,4001.4,3997.8,3.93301375]
[1760124666160,1.92,4001.1,3997.8,3.908]
[1760124666432,32.49962505,4000.6,3997.8,3.908]
[1760124666769,2.925,4000.1,3997.9,0.02501313]
[1760124666976,1.92,3999.8,3997.8,3.908]
[1760124667144,3.994,3999.9,3997.8,3.908]
[1760124667347,0.4748,4000.8,3997.9,0.02501313]
[1760124667533,0.4748,4000.8,3997.9,0.6336]
[1760124667868,1.92,4000.5,3997.9,0.6336]
[1760124668044,2.545,4000.4,3997.9,0.65861313]
[1760124668245,2.50042932,3999.4,3996.6,0.1201]
[1760124668445,1.92,4000.1,3994.9,0.1201]
[1760124668446,30.0,3999.1,3994.9,0.1201]
[1760124668644,1.92,3999.0,3995.4,0.14512878]
[1760124668849,11.92,3998.8,3995.7,2.50262872]
[1760124669068,0.4748,3999.3,3995.3,0.3163294]
[1760124669069,4.044,3998.7,3995.8,0.1201]
[1760124669268,3.392,3998.5,3995.7,0.077]
[1760124669474,30.0,3998.1,3995.4,0.1201]
[1760124669636,30.0,3998.1,3993.0,14.76112212]
[1760124669637,1.92,3997.8,3995.5,0.02502815]
[1760124669836,15.262,3997.5,3994.6,0.02503379]
[1760124670168,0.2331,3997.9,3994.7,14.6201]
[1760124670343,0.4748,3998.0,3994.8,2.11003254]
[1760124670546,0.4748,3998.0,3994.9,0.1201]
[1760124670746,1.92,3997.8,3994.9,0.1201]
[1760124670959,30.0,3997.4,3994.3,0.077]
[1760124671159,1.92,3996.7,3994.3,0.077]
[1760124671470,0.4748,3996.6,3994.3,0.077]
[1760124671779,30.0,3996.1,3992.9,0.2402]
[1760124672076,1.92,3995.2,3993.0,14.52504382]
[1760124672280,2.50291933,3995.4,3993.0,14.5]
[1760124672580,1.92,3995.3,3993.1,0.02504319]
[1760124672761,1.92,3994.9,3992.8,0.152]
[1760124672961,31.92,3994.7,3992.8,0.152]
[1760124673163,2.086,3994.6,3992.8,0.152]
[1760124673360,0.4748,3995.3,3992.8,0.152]
[1760124673668,2.498,3996.3,3992.9,0.14514445]
[1760124673880,1.66,3996.2,3993.0,0.6336]
[1760124674081,0.4748,3996.4,3993.2,0.6336]
[1760124674389,0.4748,3997.2,3994.4,0.6336]
[1760124674596,0.4748,3997.2,3994.6,0.6336]
[1760124674774,0.001,3997.3,3994.5,9.03203442]
[1760124674775,0.001,3997.3,3994.8,0.6336]
[1760124674978,0.001,3997.3,3994.9,14.5]
[1760124675186,0.001,3997.3,3995.0,0.6336]
[1760124675497,0.001,3997.3,3994.8,0.1201]
[1760124675498,0.001,3997.3,3995.2,0.6336]
[1760124675789,0.001,3997.3,3995.1,4.043]
[1760124675790,30.0,3997.1,3995.1,4.043]
[1760124675988,1.92,3997.0,3995.2,0.02503003]
[1760124676151,0.4748,3997.2,3994.9,0.6336]
[1760124676788,30.0,3997.1,3994.9,0.6336]
[1760124677095,4.8629764,3997.0,3993.4,6.6401]
[1760124677292,4.8629764,3997.0,3993.5,6.27414069]
[1760124677293,0.4411,3997.0,3993.5,6.27414069]
[1760124677548,0.4411,3997.0,3994.0,14.5]
[1760124677697,0.001,3997.3,3994.2,2.50356839]
[1760124677855,0.001,3997.3,3994.4,0.6336]
[1760124678055,1.92,3996.9,3994.5,2.086]
[1760124678286,30.0,3996.6,3994.5,2.086]
[1760124678484,1.92,3996.3,3993.6,2.086]
[1760124678674,2.50213825,3996.6,3993.7,1.351]
[1760124678675,1.92,3995.8,3993.7,1.351]
[1760124678875,1.92,3995.4,3993.3,2.086]
[1760124679078,1.92,3995.1,3993.3,2.086]
[1760124679365,30.0,3993.7,3992.6,0.002]
[1760124679566,2.50319156,3994.9,3992.6,0.002]
[1760124679865,0.4411,3993.6,3992.6,0.002]
[1760124680073,29.292,3993.4,3992.6,0.002]
[1760124680301,20.372,3992.8,3992.6,0.002]
[1760124680504,0.4411,3993.6,3992.6,0.002]
[1760124680800,30.0,3992.6,3989.6,0.1201]
[1760124681000,1.92,3992.3,3990.0,0.003]
[1760124681170,1.92,3991.9,3989.9,2.086]
[1760124681372,25.859,3991.8,3989.9,2.086]
[1760124681573,1.92,3991.6,3989.9,2.086]
[1760124681805,0.4411,3992.0,3989.9,2.086]
[1760124682209,9.323,3991.7,3989.9,2.086]
[1760124682394,30.0,3991.3,3989.9,2.086]
[1760124682583,30.0,3991.1,3989.0,2.087]
[1760124682910,5.964,3991.0,3988.7,18.544]
[1760124683072,1.92,3990.9,3988.7,14.5]
[1760124683276,30.0,3991.1,3988.7,14.5]
[1760124683577,0.4411,3991.2,3988.8,0.02507019]
[1760124683778,0.4411,3991.2,3987.9,0.1265]
[1760124684112,0.4411,3991.2,3988.1,0.1265]
[1760124684417,0.4411,3991.2,3988.3,2.50728475]
[1760124684590,0.4411,3992.1,3989.0,2.50687721]
[1760124684913,0.285,3992.0,3989.1,13.57891832]
[1760124685079,0.285,3992.0,3989.2,16.7566]
[1760124685279,0.4411,3992.1,3989.3,0.02506705]
[1760124685480,0.4411,3992.1,3989.2,16.7566]
[1760124685481,0.4411,3992.1,3989.2,1.623]
[1760124685680,0.4411,3992.1,3989.3,0.6336]
[1760124685910,0.2214,3993.9,3989.8,0.6336]
[1760124685911,0.4411,3992.9,3989.8,0.6336]
[1760124686113,0.4411,3992.9,3990.0,0.6336]
[1760124686416,0.4411,3992.9,3989.9,0.15156328]
[1760124686417,0.6404,3992.8,3990.2,0.6336]
[1760124686615,30.0,3992.7,3990.4,0.6336]
[1760124686802,7.299,3992.6,3990.4,0.6336]
[1760124687116,0.4411,3992.7,3990.4,0.6336]
[1760124687300,0.285,3992.8,3990.4,0.6336]
[1760124687504,1.491,3992.8,3990.4,0.6336]
[1760124687716,30.0,3993.3,3990.4,0.6336]
[1760124687893,2.50456049,3992.8,3990.2,0.6336]
[1760124688096,2.50444088,3993.0,3990.2,0.6336]
[1760124688097,11.92,3993.0,3990.2,0.6336]
[1760124688296,0.4411,3993.2,3990.2,0.6336]
[1760124688608,0.285,3993.2,3990.4,0.6336]
[1760124688811,0.7261,3993.2,3990.6,0.6336]
[1760124689015,0.4411,3993.2,3990.7,0.02505826]
[1760124689201,0.2214,3993.6,3990.7,2.50576704]
[1760124689406,0.2214,3993.9,3991.0,0.6336]
[1760124689607,0.2214,3993.9,3990.8,21.7851]
[1760124689608,30.0,3993.8,3991.2,0.6336]
[1760124689935,0.4411,3994.0,3991.4,0.6336]
[1760124690237,0.2214,3995.7,3991.6,0.6336]
[1760124690405,2.088,3995.3,3992.0,3.1385512]
[1760124690603,0.4411,3995.4,3992.3,0.6336]
[1760124690810,0.285,3995.3,3992.5,0.6336]
[1760124691122,30.0,3995.3,3992.6,2.088]
[1760124691326,30.0,3995.3,3992.7,15.1336]
[1760124691523,12.835,3995.1,3992.7,0.6336]
[1760124691826,0.001,3993.2,3992.7,0.6336]
[1760124692201,0.001,3993.2,3992.8,0.1765]
[1760124692546,0.001,3993.2,3992.7,0.6336]
[1760124692724,0.001,3993.2,3991.2,0.2265]
[1760124692928,0.001,3993.2,3991.6,2.088]
[1760124693495,0.001,3993.2,3991.7,0.02505198]
[1760124693731,0.4411,3994.9,3991.8,0.6336]
[1760124693935,0.4411,3995.6,3992.7,2.50456858]
[1760124694225,0.4411,3995.6,3992.9,0.6336]
[1760124694431,0.2214,3996.1,3993.1,0.6336]
[1760124694587,0.4411,3996.3,3993.1,0.6336]
[1760124694588,0.9571,3996.3,3993.3,0.6336]
[1760124694793,30.0,3995.8,3993.3,0.6336]
[1760124694992,28.594,3995.8,3993.3,0.6336]
[1760124695224,0.4411,3996.2,3993.5,0.6336]
[1760124695428,0.4411,3997.2,3993.6,0.1765]
[1760124695642,0.4411,3998.3,3994.5,0.1248]
[1760124695794,0.4421,3997.7,3994.7,0.6336]
[1760124695993,0.4421,3997.7,3994.9,0.6336]
[1760124696224,0.001,3997.7,3994.9,0.6336]
[1760124696439,30.0,3997.1,3994.9,0.6336]
[1760124696644,14.629,3997.1,3994.9,0.6336]
[1760124696941,1.92,3997.1,3994.9,0.6336]
[1760124697106,3.862,3997.2,3994.9,0.6336]
[1760124697307,1.92,3997.0,3994.9,0.6336]
[1760124697502,1.92,3997.0,3995.1,0.6336]
[1760124697707,0.001,3997.3,3995.1,0.6336]
[1760124697908,0.001,3997.3,3995.2,0.83513003]
[1760124698126,0.001,3997.3,3995.4,0.6336]
[1760124698344,0.001,3997.3,3995.5,14.52502815]
[1760124698525,0.001,3997.3,3996.0,0.6336]
[1760124698729,0.001,3997.3,3996.2,0.6336]
[1760124698928,0.001,3997.3,3996.1,0.64]
[1760124699131,0.001,3997.3,3994.8,0.1765]
[1760124699305,0.001,3997.3,3994.9,23.307]
[1760124699801,0.001,3997.3,3995.0,0.6336]
[1760124700001,0.001,3997.3,3995.4,0.6336]
[1760124700205,0.001,3997.3,3995.7,3.13623858]
[1760124700436,0.001,3997.3,3995.9,0.6336]
[1760124700639,0.001,3997.3,3995.5,0.1765]
[1760124700843,0.001,3997.3,3995.6,13.2886]
[1760124701046,0.001,3997.3,3995.8,0.6336]
[1760124701241,0.001,3997.3,3995.9,0.02502565]
[1760124701449,0.001,3997.3,3996.2,2.50232649]
[1760124701611,0.001,3997.3,3996.0,0.1765]
[1760124702840,0.001,3997.3,3996.5,2.50216997]
[1760124703151,0.001,3997.3,3996.7,3.13566343]
[1760124703352,0.001,3997.3,3996.9,0.6336]
[1760124703551,0.001,3998.1,3997.2,0.6336]
[1760124703948,0.001,3998.1,3997.9,0.6336]
[1760124704135,0.001,3998.1,3997.3,6.72151688]
[1760124704136,0.001,3998.1,3998.0,4.6776]
[1760124704338,0.2214,4001.5,3998.7,0.6336]
[1760124704514,0.4411,4001.8,3998.9,0.6336]
[1760124704846,0.4411,4001.8,3999.1,0.6336]
[1760124705051,0.4411,4001.8,3999.0,21.022]
[1760124705052,0.4411,4001.8,3999.3,0.6336]
[1760124705254,0.4411,4001.8,3994.5,1.39903113]
[1760124705255,30.0,4001.6,3994.5,1.39903113]
[1760124705552,1.92,3999.1,3994.6,1.6955]
[1760124705755,10.0,3998.8,3994.7,14.6735]
[1760124705924,1.92,3998.5,3994.7,14.6735]
[1760124706253,2.50150775,3997.6,3994.8,12.65]
[1760124706410,2.50176984,3997.2,3994.8,12.65]
[1760124706617,1.92,3997.4,3994.8,12.65]
[1760124706913,2.50106598,3998.3,3994.9,0.19853191]
[1760124707116,11.92,3998.1,3994.9,0.1735]
[1760124707316,1.92,3997.9,3994.9,0.1735]
[1760124707540,1.92,3997.7,3994.9,0.1735]
[1760124707741,1.92,3997.5,3994.9,0.1735]
[1760124707914,10.0,3997.4,3994.8,12.65]
[1760124708252,11.92,3997.1,3994.8,12.65]
[1760124708413,0.30853578,3998.9,3994.8,12.65]
[1760124708414,2.1451,3997.9,3994.9,0.19853191]
[1760124708748,0.227,3995.0,3991.8,0.1735]
[1760124708961,0.227,3995.0,3991.7,2.086]
[1760124708962,0.02503207,3994.9,3992.0,4.2405501]
[1760124709136,0.4624,3995.2,3992.1,14.6735]
[1760124709336,4.689,3995.0,3992.1,14.6735]
[1760124709528,0.02503207,3994.9,3992.2,0.1735]
[1760124709730,0.02503207,3995.1,3992.3,0.02504821]
[1760124709930,0.02503207,3995.1,3992.2,0.1735]
[1760124710151,1.92,3994.9,3992.2,0.1735]
[1760124710337,0.02503207,3994.8,3992.3,1.352]
[1760124710545,16.3974,3994.7,3994.5,0.002]
[1760124710878,2.50369294,3994.1,3990.8,0.1755]
[1760124711029,1.92,3993.5,3990.9,0.053]
[1760124711234,2.50445058,3992.9,3990.9,0.053]
[1760124711466,1.92,3992.4,3990.9,0.053]
[1760124711671,1.92,3992.4,3990.5,2.086]
[1760124711672,0.02503207,3992.3,3990.5,2.086]
[1760124712178,0.02503207,3992.7,3989.8,0.1755]
[1760124712375,0.02503207,3992.7,3990.5,2.087]
[1760124712734,0.02503207,3992.7,3990.5,2.2625]
[1760124713066,0.4624,3992.6,3990.5,2.087]
[1760124713268,2.50483647,3992.3,3989.9,0.002]
[1760124713473,1.92,3992.1,3989.9,0.002]
[1760124713766,0.02503207,3992.0,3989.9,0.002]
[1760124714133,30.0,3991.8,3989.9,0.002]
[1760124714367,30.0,3991.6,3989.9,0.002]
[1760124714539,11.92,3991.3,3989.9,0.002]
[1760124714749,1.92,3991.0,3989.9,0.002]
[1760124715107,0.4624,3991.7,3989.9,0.02706328]
[1760124715277,2.3824,3991.7,3989.9,0.002]
[1760124715469,2.40743207,3991.7,3989.9,0.002]
[1760124715849,1.92,3991.4,3989.9,0.002]
[1760124716051,1.92,3991.1,3989.9,0.002]
[1760124716346,1.92,3990.6,3989.9,0.002]
[1760124716572,0.02503207,3990.5,3989.9,0.002]
[1760124716782,0.4624,3991.0,3989.9,0.002]
[1760124716949,0.02503207,3991.1,3989.9,0.002]
[1760124717273,0.4624,3991.0,3989.9,0.002]
[1760124717433,30.0,3990.7,3989.9,0.002]
[1760124717632,0.4624,3991.0,3989.9,0.002]
[1760124717633,0.02503207,3990.6,3989.9,0.002]
[1760124717979,0.02503207,3990.9,3989.9,0.002]
[1760124718351,0.4624,3991.0,3989.9,0.002]
[1760124718352,2.3824,3991.0,3989.9,0.002]
[1760124718555,0.02503207,3990.9,3989.9,0.002]
[1760124718877,1.92,3991.5,3989.9,0.002]
[1760124719211,0.4624,3991.2,3989.9,0.002]
[1760124719357,0.02503207,3991.1,3989.9,0.002]
[1760124719557,0.4624,3991.2,3989.9,0.002]
[1760124720257,30.0,3989.6,3987.8,0.003]
[1760124720478,1.92,3989.3,3987.8,0.003]
[1760124720677,30.0,3988.9,3987.8,0.003]
[1760124720891,1.94503207,3988.8,3987.8,0.003]
[1760124721193,2.3934,3989.2,3987.8,0.003]
[1760124721393,0.4624,3988.7,3987.8,0.003]
[1760124721986,2.3824,3988.7,3987.8,0.003]
[1760124722349,30.0,3988.5,3987.8,0.003]
[1760124722552,0.4624,3988.7,3987.8,0.003]
[1760124722752,1.92,3989.0,3987.8,0.003]
[1760124723020,0.02503207,3988.9,3987.8,0.003]
[1760124723153,0.02503207,3988.9,3985.1,0.002]
[1760124723154,0.227,3987.9,3985.1,0.002]
[1760124723352,0.227,3987.9,3984.9,2.089]
[1760124723353,1.92,3987.5,3984.9,2.089]
[1760124723559,30.0,3987.1,3983.6,0.052]
[1760124723862,30.0,3986.7,3983.6,0.052]
[1760124724057,1.92,3986.4,3983.7,14.5]
[1760124724295,1.92,3986.2,3983.7,14.5]
[1760124724498,1.92,3986.2,3983.8,12.663]
[1760124724499,0.02503207,3986.1,3983.8,12.663]
[1760124724797,0.02503207,3986.2,3983.9,0.02510103]
[1760124724955,0.568,3986.2,3983.8,12.663]
[1760124725156,0.39323129,3986.3,3983.9,0.20760103]
[1760124725356,1.92,3986.8,3984.0,0.6336]
[1760124725557,4.046,3986.9,3984.0,0.6336]
[1760124725558,0.02503207,3986.7,3984.2,0.6336]
[1760124725789,0.02503207,3987.9,3985.1,0.6336]
[1760124726003,30.0,3987.9,3985.3,0.6336]
[1760124726298,0.4624,3988.4,3985.3,0.6336]
[1760124726299,30.0,3987.7,3985.3,1.0426]
[1760124726502,1.92,3987.3,3985.3,0.409]
[1760124726662,30.0,3986.8,3985.0,2.089]
[1760124726867,1.92,3986.6,3985.0,2.089]
[1760124727065,1.92,3986.6,3981.0,0.0008]
[1760124727066,5.966,3986.5,3981.0,0.0008]
[1760124727289,31.92,3986.3,3982.9,0.052]
[1760124727496,1.92,3985.9,3982.9,0.052]
[1760124727802,1.92,3985.1,3982.6,14.5]
[1760124728003,1.92,3984.7,3982.6,14.5]
[1760124728301,11.92,3984.9,3982.6,14.5]
[1760124728302,1.92,3984.9,3982.7,0.02510859]
[1760124728465,2.50793041,3987.4,3982.8,2.51074101]
[1760124728466,2.50867278,3986.2,3982.8,2.51074101]
[1760124728667,1.92,3985.5,3985.3,0.002]
[1760124728991,31.94503207,3985.4,3985.3,0.002]
[1760124729190,32.3824,3985.4,3985.3,0.002]
[1760124729393,2.50941028,3985.0,3984.9,0.002]
[1760124729710,0.02503207,3985.0,3982.1,2.146]
[1760124729922,4.282,3985.2,3984.5,0.002]
[1760124730067,30.02503207,3985.2,3984.5,0.002]
[1760124730269,1.92,3984.6,3981.2,2.09]
[1760124730471,30.0,3984.3,3980.5,6.533]
[1760124730670,1.92,3983.8,3980.2,2.09]
[1760124730893,2.51071838,3983.0,3980.2,5.829]
[1760124731104,30.0,3982.6,3980.2,5.829]
[1760124731305,31.92,3982.4,3980.2,5.829]
[1760124731480,1.92,3982.1,3980.2,5.829]
[1760124731681,0.39367404,3982.3,3980.4,0.1885]
[1760124731897,2.3824,3983.4,3980.4,0.1885]
[1760124732100,10.227,3984.5,3982.0,0.6336]
[1760124732101,0.3936259,3983.8,3982.0,0.6336]
[1760124732303,0.4624,3983.7,3982.1,2.029]
[1760124732615,0.02503207,3983.6,3982.2,0.02511174]
[1760124732819,1.92,3983.2,3980.2,0.1885]
[1760124733111,30.0,3982.0,3979.0,0.1325]
[1760124733295,11.92,3982.1,3979.0,0.1325]
[1760124733296,30.0,3981.8,3979.1,14.5]
[1760124733612,0.39360231,3982.7,3979.8,2.091]
[1760124733777,0.4624,3982.9,3980.4,0.1885]
[1760124734016,0.4624,3982.9,3980.9,0.6336]
[1760124734214,0.02503207,3982.8,3980.9,0.6336]
[1760124734437,30.0,3982.7,3980.0,14.5]
[1760124734652,1.94503207,3982.6,3980.6,0.61]
[1760124734823,1.975,3982.5,3980.6,0.61]
[1760124735021,1.917,3982.6,3980.5,0.6336]
[1760124735252,30.0,3982.3,3980.5,0.6336]
[1760124735553,0.02503207,3982.2,3980.0,14.5]
[1760124735710,2.5544,3982.9,3980.0,14.5]
[1760124735711,30.0,3982.5,3980.0,14.5]
[1760124735911,7.495,3982.8,3980.5,0.6336]
[1760124736116,0.4624,3982.9,3980.6,0.02512184]
[1760124736351,2.092,3984.3,3981.2,0.6336]
[1760124736552,26.828,3984.1,3981.3,0.65871742]
[1760124736712,0.2272,3985.3,3982.6,0.6336]
[1760124736917,10.02503207,3985.6,3983.0,0.6336]
[1760124737128,30.0,3985.4,3983.2,0.6336]
[1760124737414,0.4725,3986.6,3983.9,0.6336]
[1760124737673,12.6,3986.4,3984.1,0.6336]
[1760124737813,12.6,3986.4,3982.7,0.056]
[1760124737814,2.50884367,3985.9,3983.0,0.1885]
[1760124738019,30.0,3985.7,3983.1,0.6336]
[1760124738214,30.0,3985.5,3983.0,4.05]
[1760124738419,30.0,3985.5,3982.8,2.092]
[1760124738420,30.0,3985.3,3981.8,2.092]
[1760124738614,8.988,3984.6,3981.9,0.02511363]
[1760124738841,1.92,3984.3,3981.9,0.1885]
[1760124739053,0.39346858,3985.0,3982.2,2.5536]
[1760124739352,0.39346858,3985.0,3981.8,2.092]
[1760124739353,0.2272,3985.9,3982.8,0.6336]
[1760124739558,0.2272,3985.9,3982.7,14.5]
[1760124739559,30.0,3985.7,3983.0,0.6336]
[1760124739718,11.551,3985.5,3983.2,0.6336]
[1760124739913,1.92,3985.2,3983.2,0.6336]
[1760124740177,10.0,3984.9,3983.1,6.539]
[1760124740320,1.92,3984.6,3983.1,6.539]
[1760124740519,30.0,3984.3,3983.1,6.539]
[1760124740749,0.02503207,3984.2,3982.9,4.12]
[1760124741054,0.39353428,3984.2,3982.9,4.12]
[1760124741255,0.39353428,3984.2,3983.0,0.6336]
[1760124741492,1.92,3984.5,3983.0,0.6336]
[1760124741676,0.39349102,3984.6,3983.0,0.6336]
[1760124742137,8.341,3985.1,3983.1,0.02510607]
[1760124742315,0.4725,3985.2,3983.0,0.6336]
[1760124742522,7.653,3985.1,3983.2,0.6336]
[1760124742717,4.05,3985.0,3983.2,0.6336]
[1760124743057,1.92,3984.7,3983.0,0.6336]
[1760124743262,0.4725,3986.3,3983.5,0.6336]
[1760124743557,4.05,3986.0,3983.7,0.6336]
[1760124743763,0.02503207,3985.8,3983.9,0.6336]
[1760124743932,0.02503207,3985.8,3984.1,0.6336]
[1760124744645,1.92,3985.4,3983.3,2.092]
[1760124744822,1.92,3984.3,3982.3,2.092]
[1760124745150,1.92,3983.8,3982.1,4.05]
[1760124745318,0.02503207,3983.7,3982.1,4.05]
[1760124745517,22.904,3984.1,3982.2,0.02511174]
[1760124745758,1.92,3983.9,3982.2,0.056]
[1760124745927,0.02503207,3983.9,3982.1,4.05]
[1760124746132,1.92,3984.0,3982.1,4.05]
[1760124746441,23.616,3985.6,3982.2,0.1885]
[1760124746626,4.07403207,3985.5,3982.4,0.6336]
[1760124746831,0.4725,3986.6,3982.6,0.6336]
[1760124747029,3.493,3986.4,3983.8,0.6336]
[1760124747229,0.02503207,3986.5,3984.0,0.6336]
[1760124747420,14.058,3987.8,3984.2,3.14351416]
[1760124747620,14.058,3987.8,3984.1,0.62159977]
[1760124747621,0.02503207,3987.7,3984.4,0.6336]
[1760124747821,0.02503207,3988.8,3985.8,0.6336]
[1760124748076,30.0,3988.6,3986.0,0.6336]
[1760124748218,2.73409942,3989.0,3986.0,0.6336]
[1760124748219,0.4725,3989.5,3986.2,0.6336]
[1760124748570,0.02503207,3989.4,3986.8,0.6336]
[1760124748864,22.657,3990.1,3986.9,14.89758214]
[1760124749078,0.39314064,3989.7,3987.1,3.14164393]
[1760124749278,0.2272,3992.0,3987.3,0.6336]
[1760124749432,0.4725,3992.2,3987.4,0.1885]
[1760124749637,0.39298654,3991.8,3989.1,14.5]
[1760124749866,0.39298654,3991.8,3989.2,12.8001]
[1760124750047,0.2272,3992.8,3989.3,0.65866705]
[1760124750249,0.2272,3992.8,3989.5,0.6336]
[1760124750250,30.0,3992.6,3989.5,0.6336]
[1760124750466,0.39281156,3991.5,3989.6,0.21356516]
[1760124750647,0.4725,3992.7,3989.7,15.1336]
[1760124750872,30.0,3993.3,3989.9,0.6336]
[1760124751035,0.39286762,3992.3,3989.9,0.6336]
[1760124751237,30.0,3992.0,3986.1,0.1325]
[1760124751483,1.92,3991.4,3988.2,0.1885]
[1760124751649,1.92,3991.1,3988.3,0.02507333]
[1760124751980,1.92,3990.9,3988.4,2.092]
[1760124752162,1.47749176,3993.5,3989.8,2.50634977]
[1760124752163,0.4725,3992.2,3989.8,2.50634977]
[1760124752471,0.39295881,3992.2,3990.0,0.6336]
[1760124752688,0.39295881,3992.2,3990.2,0.6336]
[1760124753241,1.92,3991.9,3988.8,0.1885]
[1760124753536,0.8903596,3991.8,3988.9,0.14606956]
[1760124753736,0.39282753,3991.8,3989.1,3.14043111]
[1760124753941,0.39282753,3991.8,3989.3,0.6336]
[1760124754142,16.999,3991.7,3989.3,0.6336]
[1760124754338,1.92,3991.4,3989.3,0.6336]
[1760124754535,1.92,3991.4,3989.2,0.1885]
[1760124754536,1.92,3991.5,3989.2,0.1885]
[1760124754740,1.92,3991.1,3989.2,14.5]
[1760124754973,30.0,3990.7,3989.3,4.07106705]
[1760124755172,1.92,3990.5,3989.1,2.091]
[1760124755340,0.02503207,3990.4,3989.1,2.091]
[1760124755543,0.4725,3991.7,3989.2,0.02506768]
[1760124755741,17.173,3992.5,3989.2,0.21356768]
[1760124755964,11.92,3992.2,3989.3,0.6336]
[1760124756164,0.4725,3992.6,3989.5,0.6336]
[1760124756372,10.8,3993.2,3989.7,0.6336]
[1760124756553,10.539,3993.9,3990.0,0.6336]
[1760124756758,15.89903207,3993.8,3991.4,0.6336]
[1760124757038,0.4725,3994.1,3991.6,0.6336]
[1760124757039,22.001,3994.0,3991.6,0.6336]
[1760124757343,0.4725,3994.1,3991.7,0.02505198]
[1760124757552,38.66384791,3994.0,3991.4,0.1885]
[1760124757753,30.2272,3993.9,3991.5,0.6336]
[1760124757962,30.0,3993.7,3991.5,0.6336]
[1760124758165,1.92,3993.4,3990.4,0.1885]
[1760124758485,30.0,3992.9,3989.6,0.1885]
[1760124758653,1.92,3992.5,3990.2,0.121]
[1760124758859,1.92,3992.0,3990.2,0.121]
[1760124759092,5.964,3991.9,3990.2,0.121]